[Event "Slovakia Open Piestany-A 2022"]
[Site "Piestany"]
[Date "2022.07.18"]
[Round "9.7"]
[White "Lewtak, Damian"]
[Black "Samunenkov, Ihor"]
[Result "0-1"]
[ECO "A07"]
[WhiteElo "2397"]
[BlackElo "2448"]
[Annotator "TA"]
[PlyCount "162"]
[EventDate "2022.07.12"]
[EventType "swiss"]
[EventCountry "SVK"]
[SourceTitle "playchess.com"]
[Source "ChessBase"]
[SourceQuality "1"]
[TimeControl "40/5400+30:1800+30"]

{[%evp 9,162,8,11,24,16,11,22,0,6,13,6,-7,12,-33,-18,-17,-16,-17,-8,-10,-10,-25,-24,-52,-49,-54,-26,-27,27,-2,-6,-7,-4,-2,0,-4,-14,0,0,-60,-28,-36,-29,-29,-26,-35,-33,-41,-38,-43,-42,-41,-43,-54,-41,-44,-22,-20,-10,-19,-29,-59,-12,-17,0,-37,0,0,19,27,29,15,74,45,82,74,70,34,68,68,69,77,65,86,85,84,70,58,77,65,64,0,0,0,0,0,0,0,0,0,0,0,0,0,0,0,0,0,0,-18,-18,-64,-72,-125,-8,-8,-8,-8,-8,-8,-8,-8,-8,-9,-9,-16,-16,-31,-35,-205,-205,-2684,-584,-29970,-29969,-29971,-29972,-29972,-29973,-29973,-29974,-29974,-29974,-29975,-29976,-29976,-29977,-29980,-29978,-29978,-29979,-29980,-29979,-29979,-29980]} 1. Nf3 {[%emt 0:01:22]} Nf6 {[%emt 0:00:17]} 2. b3 {[%emt 0:00:07]} d5 {[%emt 0:09:04]} 3. Bb2 {[%emt 0:01:39]} Bf5 {[%emt 0:01:19]} 4. g3 {[%emt 0:00:11]} e6 {[%emt 0:03:38]} 5. Bg2 {[%emt 0:00:07]} h6 {[%emt 0:01:10]} 6. d3 {[%emt 0:00:19] A07: Réti Opening: New York and Capablanca Systems.} Nbd7 {[%emt 0:01:50]} 7. Nbd2 {[%emt 0:00:20] [#]} a5 $146 {[%emt 0:02:27]} ({Predecessor:} 7... Bh7 8. O-O Be7 9. e4 O-O 10. Qe2 c5 11. Rfe1 a5 12. a4 Qc7 13. exd5 Nxd5 {1-0 (74) Zierk,S (2488)-Sarana,A (2685) Chess.com INT 2022}) 8. a4 {[%emt 0:00:13] The position is equal.} Bb4 {[%emt 0:02:32]} 9. O-O {[%emt 0:01:17][%cal Oe2e4]} O-O {[%emt 0:04:27]} 10. e3 {[%emt 0:00:45]} Qe7 {[%emt 0:03:53]} 11. Ne5 {[%emt 0:04:58]} Nxe5 {[%emt 0:07:47]} 12. Bxe5 {[%emt 0:00:19]} Rad8 {[%emt 0:01:41]} 13. h3 {[%emt 0:05:52]} Bd6 {[%emt 0:08:25]} 14. Bc3 {[%emt 0:02:39]} b6 {[%emt 0:04:41]} 15. Qe2 {[%emt 0:00:33]} e5 {[%emt 0:01:42]} 16. Rad1 {[%emt 0:11:36]} Qe6 {[%emt 0:02:18]} 17. Kh2 {[%emt 0:02:56]} Bh7 {[%emt 0:00:46]} 18. e4 {[%emt 0:04:16]} Bb4 {[%emt 0:07:03]} ({Better is} 18... Rfe8) 19. exd5 {[%emt 0:08:01]} (19. Bxb4 {keeps more tension.} axb4 20. exd5 Nxd5 21. Rde1) 19... Nxd5 {[%emt 0:03:18]} 20. Bxd5 {[%emt 0:00:06]} (20. Bxe5 $2 f6 21. Be4 fxe5 $19) 20... Rxd5 {[%emt 0:01:03]} 21. Bxb4 {[%emt 0:00:09]} axb4 {[%emt 0:00:17]} 22. Nc4 {[%emt 0:00:16]} Re8 {[%emt 0:02:51]} 23. Rde1 {[%emt 0:01:19]} Qd7 {[%emt 0:07:07]} 24. Qf3 {[%emt 0:03:14]} (24. f3 $11) 24... f6 {[%emt 0:01:35]} (24... e4 $5 25. dxe4 Rd4 $15) 25. Re3 {[%emt 0:01:18]} Rd4 {[%emt 0:01:44]} 26. Rfe1 {[%emt 0:01:16]} Bf5 {[%emt 0:01:11]} 27. Qg2 {[%emt 0:11:20][%cal Of2f4]} Be6 {[%emt 0:03:49]} 28. Nd2 {[%emt 0:03:08]} Bd5 {[%emt 0:00:53]} 29. Qf1 {[%emt 0:00:31]} Qc6 {[%emt 0:02:26]} 30. Rc1 {[%emt 0:00:21]} Rd8 {[%emt 0:01:07]} 31. Qe2 {[%emt 0:02:49]} Bf7 {[%emt 0:02:05][%cal Bd5f7,Bf7g6,Bg6h7][%mdl 32]} 32. Qe1 {[%emt 0:06:18]} Bg6 {[%emt 0:03:11]} 33. Nf3 {[%emt 0:04:02]} R4d5 {[%emt 0:02:32]} 34. Nh4 {[%emt 0:00:46]} Bh7 {[%emt 0:00:53]} 35. f4 {[%emt 0:01:15]} exf4 {[%emt 0:03:19]} (35... Rc5 $15 {might be stronger.} 36. c4 Rxd3) 36. gxf4 $11 {[%emt 0:00:18]} Rc5 {[%emt 0:01:36][%cal Oh7d3] [#] aiming for ...Bxd3!} 37. Qe2 {[%emt 0:00:34]} (37. c4 $5 {[%cal Rd3d4]}) 37... Qd6 {[%emt 0:00:56]} 38. Rf1 {[%emt 0:02:42]} ({But not} 38. Re8+ $2 Kf7 39. Rxd8 Qxf4+ 40. Kh1 Qxc1+ 41. Kh2 Qf4+ 42. Kg1 Re5 $19) 38... Bf5 {[%emt 0:01:49]} 39. Nxf5 {[%emt 0:08:36]} Rxf5 {[%emt 0:00:03]} 40. Re6 {[%emt 0:02:24]} Qd5 {[%emt 0:01:04]} (40... Qd4 $11) 41. Rf2 {[%emt 0:39:53]} Kh7 {[%emt 0:11:48]} 42. Re7 {[%emt 0:00:00]} Qd4 {[%emt 0:04:02]} 43. Re4 {[%emt 0:00:00]} Qd6 {[%emt 0:01:07]} 44. Qe1 {[%emt 0:00:00]} c5 {[%emt 0:02:21]} 45. Re6 {[%emt 0:00:00]} Qd4 {[%emt 0:00:49]} 46. Kg3 {[%emt 0:00:00]} Rd6 {[%emt 0:06:23]} 47. Rxd6 {[%emt 0:00:00]} Qxd6 $16 {[%emt 0:00:05][%mdl 4096] Endgame KQR-KQR} 48. Qe4 {[%emt 0:00:00]} Qd7 {[%emt 0:05:52]} 49. Re2 {[%emt 0:00:00] Threatens to win with Qe6.} g5 $1 {[%emt 0:00:31]} 50. Qe7+ {[%emt 0:01:28]} (50. Qe6 $1 $14 gxf4+ 51. Kf3 Qb7+ 52. Re4) 50... Qxe7 $11 {[%emt 0:00:04]} 51. Rxe7+ {[%emt 0:00:03] KR-KR} Kg6 {[%emt 0:00:28]} 52. Re6 {[%emt 0:00:58]} gxf4+ {[%emt 0:01:21]} 53. Kf3 {[%emt 0:00:06]} Rh5 {[%emt 0:00:32]} 54. Rxb6 {[%emt 0:00:22]} Rxh3+ {[%emt 0:00:30]} 55. Kxf4 {[%emt 0:00:05] Strongly threatening Rb5.} Rh2 {[%emt 0:00:20]} 56. d4 {[%emt 0:01:09]} cxd4 {[%emt 0:00:56][%cal Bc5d4,Bd4d3,Bd3d2][%mdl 32]} 57. Rxb4 {[%emt 0:00:21]} d3 {[%emt 0:00:19]} 58. Kg3 {[%emt 0:01:42]} Rxc2 {[%emt 0:01:13]} 59. Rd4 {[%emt 0:00:13]} d2 {[%emt 0:00:23]} 60. b4 {[%emt 0:00:26]} (60. Kf4 $11) 60... Ra2 {[%emt 0:01:00]} 61. a5 {[%emt 0:01:34]} ({White should try} 61. b5) 61... Rb2 {[%emt 0:00:10]} (61... Kg5 $17 62. a6 Rxa6 63. Rxd2 Ra3+ 64. Kf2 Rb3) 62. Kf3 {[%emt 0:02:08] [#]} Rxb4 $1 {[%emt 0:00:44]} 63. Rxd2 {[%emt 0:00:10]} Ra4 {[%emt 0:00:08]} 64. Rd5 {[%emt 0:00:52]} f5 {[%emt 0:00:55]} 65. Rd6+ {[%emt 0:00:45]} Kg5 {[%emt 0:00:07] And now ...Ra3+ would win.} 66. Ra6 {[%emt 0:00:10]} Ra3+ {[%emt 0:00:55]} 67. Ke2 {[%emt 0:00:13]} h5 {[%emt 0:00:21]} 68. Ra8 {[%emt 0:00:04]} Kg4 {[%emt 0:00:45]} (68... h4 69. Kf2 $17) 69. a6 $2 {[%emt 0:00:07] White does not recover from this.} (69. Kf2 $1 $15) 69... Ra2+ $19 {[%emt 0:00:10]} ({Stronger than} 69... h4 70. Kf2 $17) 70. Ke1 $2 {[%emt 0:01:58]} (70. Kf1) 70... f4 {[%emt 0:00:44]} ({Avoid the trap} 70... h4 $2 71. Kf1 $19) (70... Kf3 $142 71. Rd8 Rxa6 72. Rd3+ Kg2 73. Rd2+ Kg3 74. Rd3+ Kg4) 71. a7 {[%emt 0:00:26] Hoping for Rg8+.} Kf3 {[%emt 0:00:15] Black mates.} 72. Kd1 {[%emt 0:00:33]} h4 {[%emt 0:00:18]} 73. Ke1 {[%emt 0:00:06]} h3 {[%emt 0:00:40]} 74. Rh8 {[%emt 0:00:07]} Rxa7 {[%emt 0:00:52]} 75. Rxh3+ {[%emt 0:00:05]} Kg2 {[%emt 0:00:07]} 76. Rh8 {[%emt 0:00:31]} Re7+ {[%emt 0:00:27]} 77. Kd2 {[%emt 0:00:08]} f3 {[%emt 0:00:09][%cal Bf4f3,Bf3f2][%mdl 32]} 78. Kd3 {[%emt 0:00:12]} f2 {[%emt 0:00:16]} 79. Rg8+ {[%emt 0:00:06]} Kf1 {[%emt 0:00:19]} 80. Rb8 {[%emt 0:00:04]} Rf7 {[%emt 0:01:02]} 81. Ke3 {[%emt 0:00:30]} Kg2 {[%emt 0:00:19] Weighted Error Value: White=0.11 (very precise) /Black=0.11 (very precise)} 0-1

[Event "Slovakia Open Piestany-A 2022"]
[Site "Piestany"]
[Date "2022.07.18"]
[Round "9.8"]
[White "Savitha Shri B"]
[Black "Pacher, Milan"]
[Result "1/2-1/2"]
[ECO "B81"]
[WhiteElo "2278"]
[BlackElo "2399"]
[Annotator "TA"]
[PlyCount "82"]
[EventDate "2022.07.12"]
[EventType "swiss"]
[EventCountry "SVK"]
[SourceTitle "playchess.com"]
[Source "ChessBase"]
[SourceQuality "1"]
[TimeControl "40/5400+30:1800+30"]

{[%evp 13,82,0,0,-9,52,51,38,30,25,37,0,35,22,25,64,0,7,0,0,0,0,0,0,-60,-52,-53,-65,-76,-9,-25,0,0,0,0,0,0,7,0,0,0,0,0,0,0,0,0,0,0,0,0,0,0,0,0,0,0,0,0,0,0,0,0,0,0,0,0,0,0,0,0,0]} 1. e4 {[%emt 0:00:16]} c5 {[%emt 0:09:34]} 2. Nf3 {[%emt 0:00:08]} d6 {[%emt 0:00:04]} 3. d4 {[%emt 0:00:04]} cxd4 {[%emt 0:00:03]} 4. Nxd4 {[%emt 0:00:04]} Nf6 {[%emt 0:00:04]} 5. Nc3 {[%emt 0:00:05]} a6 {[%emt 0:00:04]} 6. Be3 {[%emt 0:00:04]} e6 {[%emt 0:00:07]} 7. g4 {[%emt 0:05:34][%cal Bg2g4,Bg4g5][%mdl 32]} e5 {[%emt 0:00:26][%csl LRd4,LRg4]} 8. Nf5 {[%emt 0:00:51] B81: Sicilian Scheveningen: Keres Attack.} h5 {[%emt 0:00:11]} (8... g6 $11 9. Nh6 Bxh6 10. Bxh6 Nxg4) 9. g5 $14 {[%emt 0:09:47]} Nxe4 {[%emt 0:00:21]} 10. Nxg7+ $1 {[%emt 0:01:55] White is slightly better.} Bxg7 {[%emt 0:00:03]} 11. Nxe4 {[%emt 0:00:07]} d5 {[%emt 0:00:05]} 12. Ng3 {[%emt 0:01:31]} d4 {[%emt 0:02:36]} 13. Bd2 {[%emt 0:04:11]} Qd5 {[%emt 0:00:23]} 14. Rg1 {[%emt 0:02:18]} (14. c4 $14 Qc6 15. Bd3) 14... Bg4 $1 $36 {[%emt 0:07:40][%mdl 2048] White is under pressure.} 15. Be2 {[%emt 0:06:48]} Nd7 {[%emt 0:06:33]} 16. Bxg4 {[%emt 0:18:39]} hxg4 {[%emt 0:00:37]} 17. Qxg4 {[%emt 0:00:50]} Rxh2 {[%emt 0:01:22]} 18. Nf5 {[%emt 0:01:03]} ({White should play} 18. g6 $11 Nf6 19. Qf5) 18... Bf8 $15 {[%emt 0:01:38] Strongly threatening ...Rc8.} 19. g6 {[%emt 0:15:43]} fxg6 {[%emt 0:02:53]} 20. Qxg6+ {[%emt 0:01:15]} Qf7 {[%emt 0:00:05] [#]} ({Black should try} 20... Kd8 $17 {Hoping for ...Rc8.} 21. Ng3 Kc7) 21. Ke2 $146 {[%emt 0:02:42]} ({Predecessor:} 21. Qg3 Rh5 22. Ng7+ Bxg7 23. Qxg7 Qxg7 24. Rxg7 Rh1+ 25. Ke2 Rxa1 26. Bb4 O-O-O {0-1 (28) Bares,J (2015)-Mosesov,D (2353) Pardubice 2019}) 21... Nf6 {[%emt 0:06:08] [#] White must now prevent ...Rc8.} 22. Qxf7+ {[%emt 0:05:44] The position is equal.} Kxf7 {[%emt 0:00:03]} 23. Rh1 {[%emt 0:00:24]} Rxh1 {[%emt 0:01:27]} 24. Rxh1 {[%emt 0:00:02]} Rd8 {[%emt 0:08:59]} 25. f3 {[%emt 0:03:32]} Ke6 {[%emt 0:03:03]} 26. Ng3 {[%emt 0:00:20]} Be7 {[%emt 0:01:03]} 27. Bg5 {[%emt 0:03:13]} Rg8 {[%emt 0:06:18]} 28. Bxf6 {[%emt 0:00:06]} Rxg3 $11 {[%emt 0:01:07][%mdl 4096] Endgame KRB-KRB} 29. Kf2 {[%emt 0:01:32] [#] aiming for Bxe7.} Rg8 {[%emt 0:00:03]} 30. Bxe7 {[%emt 0:00:11]} Kxe7 {[%emt 0:00:03] KR-KR} 31. Rh7+ {[%emt 0:03:40]} Ke6 {[%emt 0:00:03]} 32. Rxb7 {[%emt 0:03:48]} Rc8 {[%emt 0:00:02]} 33. c3 {[%emt 0:00:40]} dxc3 {[%emt 0:00:03] ( -> ...c2)} 34. bxc3 {[%emt 0:00:15]} Rxc3 {[%emt 0:00:02]} 35. Rb6+ {[%emt 0:00:11]} Kf5 {[%emt 0:00:05]} 36. Rxa6 {[%emt 0:00:03]} e4 {[%emt 0:00:38]} 37. fxe4+ {[%emt 0:00:53]} Kxe4 {[%emt 0:00:03]} 38. Ke2 {[%emt 0:00:09]} Rc2+ {[%emt 0:00:04]} 39. Kd1 {[%emt 0:00:14]} Rh2 {[%emt 0:00:05]} 40. a4 {[%emt 0:00:11]} Kd3 {[%emt 0:00:05][%cal Rh2h1]} 41. Rd6+ {[%emt 0:30:07]} Kc4 {[%emt 0:30:04] Weighted Error Value: White=0.09 (flawless) /Black=0.10 (very precise)} 1/2-1/2

[Event "Slovakia Open Piestany-A 2022"]
[Site "Piestany"]
[Date "2022.07.18"]
[Round "9.9"]
[White "Stefansson, Vignir Vatnar"]
[Black "Czerw, Dawid"]
[Result "1/2-1/2"]
[ECO "E05"]
[WhiteElo "2461"]
[BlackElo "2391"]
[Annotator "TA"]
[PlyCount "32"]
[EventDate "2022.07.12"]
[EventType "swiss"]
[EventCountry "SVK"]
[SourceTitle "playchess.com"]
[Source "ChessBase"]
[SourceQuality "1"]
[TimeControl "40/5400+30:1800+30"]

{[%evp 13,32,16,15,15,8,28,37,33,38,34,47,0,0,0,16,-79,-80,-262,-166,-297,-304]} 1. Nf3 {[%emt 0:08:45]} Nf6 {[%emt 0:00:03]} 2. c4 {[%emt 0:00:13]} e6 {[%emt 0:00:05]} 3. g3 {[%emt 0:00:07]} d5 {[%emt 0:00:05]} 4. d4 {[%emt 0:00:11]} Be7 {[%emt 0:00:10]} 5. Bg2 {[%emt 0:00:06]} O-O {[%emt 0:00:06]} 6. O-O {[%emt 0:00:12]} dxc4 {[%emt 0:00:08]} 7. Qc2 {[%emt 0:01:08]} b5 {[%emt 0:00:09]} 8. a4 {[%emt 0:00:26] E05: Open Catalan: 5 Nf3 Be7.} b4 {[%emt 0:00:06]} 9. Nfd2 {[%emt 0:00:04]} Nd5 {[%emt 0:00:25]} 10. Nxc4 {[%emt 0:00:53] White is slightly better.} c5 {[%emt 0:00:22]} 11. dxc5 {[%emt 0:02:58]} Bxc5 {[%emt 0:00:25]} 12. Rd1 {[%emt 0:07:09]} (12. e4 $14 {is superior.} Nb6 13. Ncd2) 12... Nd7 $11 {[%emt 0:00:15]} 13. e4 {[%emt 0:11:58]} ({Of course not} 13. Bxd5 exd5 14. Be3 Bb7 15. Bxc5 Nxc5 $17) 13... N5f6 {[%emt 0:00:42] [#]} 14. Bf4 $146 {[%emt 0:03:55]} (14. Be3 $11 Qc7 15. Nbd2) ({Predecessor:} 14. Bg5 Qc7 15. Nbd2 Ba6 16. Qb3 Ng4 17. Ne3 Nde5 18. Bf4 Bxe3 19. Bxe3 Nd3 20. Nf1 {½-½ (40) Dordzhieva,D (2321)-Schulze,L (2309) Darmstadt 2022}) 14... Ng4 $17 {[%emt 0:38:28]} 15. Rf1 {[%emt 0:03:15] [#]} (15. Be3 $17 Nxe3 16. Nxe3 Bxe3 17. fxe3) 15... e5 {[%emt 0:03:15]} 16. Bc1 {[%emt 0:02:15]} (16. Bd2 $142) 16... Ba6 {[%emt 0:00:37][%mdl 32768] Weighted Error Value: White=0.50/Black=0.10 (very precise) . An unexpected result.} 1/2-1/2

[Event "Slovakia Open Piestany-A 2022"]
[Site "Piestany"]
[Date "2022.07.18"]
[Round "9.10"]
[White "Hrbek, Stepan"]
[Black "Moroni, Luca Jr"]
[Result "0-1"]
[ECO "B28"]
[WhiteElo "2272"]
[BlackElo "2584"]
[Annotator "TA"]
[PlyCount "96"]
[EventDate "2022.07.12"]
[EventType "swiss"]
[EventCountry "SVK"]
[SourceTitle "playchess.com"]
[Source "ChessBase"]
[SourceQuality "1"]
[TimeControl "40/5400+30:1800+30"]

{[%evp 10,96,39,40,43,43,45,39,43,35,44,19,78,45,85,16,57,50,36,47,46,41,41,43,37,-39,-53,-57,-57,-57,-65,-93,-97,-135,-135,-131,-115,-122,-111,-194,-202,-218,-216,-216,-200,-216,-181,-219,-226,-220,-192,-198,-198,-236,-164,-300,-240,-254,-251,-551,-536,-561,-559,-557,-563,-552,-559,-531,-537,-466,-280,-852,-912,-912,-870,-1287,-1226,-1623,-1527,-1599,-1554,-1748,-1699,-2279,-856,-6019,-6770,-5097,-2839]} 1. e4 {[%emt 0:00:05]} c5 {[%emt 0:13:13]} 2. Nf3 {[%emt 0:00:21][%cal Bg1f3,Bf3d4,Bd4f5,Bf5e3,Be3d5][%mdl 32]} a6 {[%emt 0:00:02]} 3. c4 {[%emt 0:00:57]} Nc6 {[%emt 0:01:00]} 4. d4 {[%emt 0:00:06]} cxd4 {[%emt 0:00:03]} 5. Nxd4 {[%emt 0:00:08]} e5 {[%emt 0:00:01]} 6. Nf5 {[%emt 0:00:10]} d6 {[%emt 0:01:32] B28: Sicilian: 2 Nf3 a6 (O'Kelly Variation).} 7. Nc3 {[%emt 0:00:07]} g6 {[%emt 0:00:04]} 8. Ne3 {[%emt 0:00:18]} Bh6 {[%emt 0:00:04] White is slightly better.} 9. h4 {[%emt 0:06:17][%cal Bh2h4,Bh4h5][%mdl 32] [#] 9.Bd3 is the modern continuation.} Be6 $146 {[%emt 0:06:31]} ({Predecessor:} 9... Nf6 10. Bd3 Be6 11. Ncd5 Bxd5 12. cxd5 Nd4 13. g3 Rc8 14. Kf1 Bg7 15. Kg2 O-O {1-0 (85) Friedrich,N (2301)-Drei,A (2270) Cesenatico 2014}) 10. h5 {[%emt 0:01:35]} (10. Nc2 $5 {[%cal Rc1h6]}) 10... Kf8 {[%emt 0:03:00]} (10... Rc8 $11) 11. Ned5 {[%emt 0:13:53]} Kg7 {[%emt 0:03:24]} 12. Bd3 {[%emt 0:01:45]} (12. Bxh6+ $1 $16 Nxh6 13. Qd2) 12... Rc8 {[%emt 0:03:32]} 13. Bxh6+ {[%emt 0:13:49]} Nxh6 {[%emt 0:01:31]} 14. Qd2 {[%emt 0:00:07]} Nd4 {[%emt 0:03:49]} 15. O-O-O {[%emt 0:05:27]} b5 {[%emt 0:13:16]} 16. b3 {[%emt 0:01:00]} Qa5 {[%emt 0:06:49]} 17. Ne2 {[%emt 0:00:31]} (17. f3 $14) 17... Qa3+ $15 {[%emt 0:07:17]} (17... Qxd2+ 18. Kxd2 bxc4 19. bxc4 $11) 18. Qb2 $1 {[%emt 0:01:11]} (18. Kb1 Nxb3 $1 19. axb3 bxc4 $17) 18... Qxb2+ {[%emt 0:01:23]} 19. Kxb2 {[%emt 0:00:07]} bxc4 {[%emt 0:00:05]} 20. Nxd4 {[%emt 0:01:41] Black continues to play with concentration.} Bxd5 {[%emt 0:01:22]} ({But not} 20... cxd3 21. Nxe6+ fxe6 22. Ne3 $11 (22. Nb4 Ng4 $11)) 21. exd5 {[%emt 0:01:16][%cal Od3c4]} cxd3 {[%emt 0:00:26]} 22. Nc6 {[%emt 0:00:06]} e4 {[%emt 0:02:39] White must now prevent ...Ng4.} 23. f3 {[%emt 0:04:57] Against Ng4} f5 {[%emt 0:00:50]} 24. Rhe1 {[%emt 0:00:16] [#]} (24. hxg6 $17 hxg6 25. Nd4) 24... Rhe8 $1 $19 {[%emt 0:00:12]} (24... gxh5 25. fxe4 Rhe8 26. Rxd3 $15) 25. hxg6 {[%emt 0:00:12]} hxg6 {[%emt 0:00:08]} 26. Kc3 {[%emt 0:02:44] [#]} Ng8 $1 {[%emt 0:04:36]} 27. Kd4 {[%emt 0:04:31][%cal Rf3e4]} Nf6 {[%emt 0:00:41]} 28. Rd2 {[%emt 0:14:21]} g5 {[%emt 0:02:58]} 29. b4 {[%emt 0:03:45]} Kg6 {[%emt 0:03:41]} 30. a4 {[%emt 0:00:52]} Rc7 {[%emt 0:01:06]} 31. Rb2 {[%emt 0:03:26]} Rb7 {[%emt 0:01:20]} ({Weaker is} 31... e3 32. Rxe3 Rxe3 33. Kxe3 Nxd5+ 34. Kd4 $17) 32. Na5 {[%emt 0:00:13]} (32. Reb1 {keeps fighting.}) 32... Rh7 {[%emt 0:02:52]} 33. fxe4 {[%emt 0:03:25]} Nxe4 {[%emt 0:03:39] ...Rh4 is the strong threat.} ({Not} 33... Rxe4+ 34. Rxe4 Nxe4 35. Kxd3 $11) (33... fxe4 34. Nc4 $17) 34. Rf1 $2 {[%emt 0:01:13]} (34. Re3) 34... d2 {[%emt 0:00:53] Strongly threatening ...Rh2.} 35. Nc4 {[%emt 0:03:16]} Rh2 {[%emt 0:05:00]} 36. Nxd2 {[%emt 0:00:33]} Rxg2 {[%emt 0:00:14]} 37. Nc4 {[%emt 0:00:07]} Rxb2 {[%emt 0:01:22]} 38. Nxb2 {[%emt 0:00:06][%mdl 4096] Endgame KRN-KRN} g4 {[%emt 0:00:15][%cal Bg5g4,Bg4g3][%mdl 32]} 39. Nd3 {[%emt 0:01:22]} Ng3 {[%emt 0:01:18]} 40. Rd1 {[%emt 0:04:39]} (40. Re1 Rxe1 41. Nxe1) 40... Ne2+ {[%emt 0:00:35] Black is clearly winning.} 41. Kc4 {[%emt 0:30:05]} g3 {[%emt 0:31:11]} 42. Ne1 {[%emt 0:00:27]} f4 {[%emt 0:01:16] Hoping for ...Kf5.} 43. b5 {[%emt 0:03:02]} axb5+ {[%emt 0:00:32]} 44. axb5 {[%emt 0:00:07]} Kf5 {[%emt 0:01:15] Threatens to win with ...Kg4.} 45. b6 {[%emt 0:00:54]} Kg4 {[%emt 0:01:15]} 46. Rd3 {[%emt 0:00:37]} Ng1 {[%emt 0:03:01]} (46... Re4+ $142 47. Kb5 Nd4+ 48. Rxd4 Rxd4) 47. Kb5 {[%emt 0:01:29]} Rxe1 {[%emt 0:00:24]} 48. Rb3 {[%emt 0:00:51]} f3 {[%emt 0:00:44] Weighted Error Value: White=0.68/Black=0.20 (precise)} 0-1

[Event "Slovakia Open Piestany-A 2022"]
[Site "Piestany"]
[Date "2022.07.18"]
[Round "9.11"]
[White "Piesik, Piotr"]
[Black "Aradhya, Garg"]
[Result "1/2-1/2"]
[ECO "D47"]
[WhiteElo "2440"]
[BlackElo "2229"]
[Annotator "TA"]
[PlyCount "109"]
[EventDate "2022.07.12"]
[EventType "swiss"]
[EventCountry "SVK"]
[SourceTitle "playchess.com"]
[Source "ChessBase"]
[SourceQuality "1"]
[TimeControl "40/5400+30:1800+30"]

{[%evp 15,109,-2,27,2,30,10,8,7,26,37,41,43,33,37,38,0,0,0,0,0,-15,0,0,-21,0,0,0,0,0,-89,-86,-81,-87,-79,-77,-77,-98,-81,-78,-79,-81,-79,-79,-91,-79,-96,-79,-120,-120,-1027,-126,-245,-257,-226,-119,-120,-120,-120,-26,-30,-49,-53,-53,-54,-49,-66,-8,-8,-8,-8,0,0,0,-25,0,0,0,0,0,0,0,0,0,0,0,0,0,0,0,0,0,0,0,0,0,0]} 1. d4 {[%emt 0:03:46]} d5 {[%emt 0:00:02]} 2. c4 {[%emt 0:00:05]} c6 {[%emt 0:00:03]} 3. Nc3 {[%emt 0:00:05]} Nf6 {[%emt 0:00:08]} 4. e3 {[%emt 0:00:19]} Nbd7 {[%emt 0:05:30]} 5. Nf3 {[%emt 0:02:09]} e6 {[%emt 0:00:02]} 6. Bd3 {[%emt 0:00:06]} dxc4 {[%emt 0:03:32]} 7. Bxc4 {[%emt 0:00:08]} b5 {[%emt 0:00:05]} 8. Bd3 {[%emt 0:00:05]} Bd6 {[%emt 0:02:28]} 9. Qc2 {[%emt 0:02:04] D47: Semi-Slav: Meran System.} O-O {[%emt 0:00:08]} 10. Ng5 {[%emt 0:01:17]} h6 {[%emt 0:01:34]} 11. Nge4 {[%emt 0:00:08] [#]} Nxe4 $146 {[%emt 0:12:35]} ({Predecessor:} 11... Be7 12. Nxf6+ Nxf6 13. O-O Bb7 14. Ne4 Nxe4 15. Bxe4 Qb6 16. a3 a5 17. Bd2 b4 {0-1 (30) Barkhatov,I-Petrigin,M ICCF email 2013}) 12. Nxe4 {[%emt 0:03:40]} Bb4+ {[%emt 0:00:10]} 13. Bd2 {[%emt 0:01:13]} Bxd2+ {[%emt 0:00:03]} 14. Nxd2 {[%emt 0:11:03]} Bb7 {[%emt 0:01:46][%cal Oc6c5]} 15. Nb3 {[%emt 0:16:50] Inhibits c5.} (15. Bh7+ $14 Kh8 16. Be4) 15... c5 $1 $11 {[%emt 0:03:30]} 16. Nxc5 {[%emt 0:05:38]} Nxc5 {[%emt 0:05:40]} 17. Qxc5 {[%emt 0:01:09]} Bxg2 {[%emt 0:03:39]} 18. Rg1 {[%emt 0:00:09]} Bd5 {[%emt 0:00:20]} 19. e4 {[%emt 0:09:49]} ({Of course not} 19. Bxb5 Rb8 20. a4 a6 $17) 19... Bc4 {[%emt 0:06:54]} (19... Rc8 $5 {[%cal Rc8c5]} 20. Qxb5 (20. Qxa7 $2 Bc4 $19) 20... a6 $15) 20. Bxc4 {[%emt 0:00:20]} bxc4 {[%emt 0:00:01]} 21. Qe5 {[%emt 0:06:52][%csl Gg1][%cal Re5g7]} g6 {[%emt 0:00:11]} 22. Rc1 {[%emt 0:00:51]} (22. Rg3 $1 $11) 22... Rb8 $17 {[%emt 0:03:21]} 23. Rxc4 {[%emt 0:11:53]} Rxb2 {[%emt 0:00:33] aiming for ...Rb1+.} 24. Kf1 {[%emt 0:04:04]} Rxa2 $40 {[%emt 0:08:22][%mdl 128] Black wants a kill.} 25. Rg3 {[%emt 0:04:11]} Ra5 {[%emt 0:02:05]} 26. Rc5 {[%emt 0:01:22]} Rxc5 {[%emt 0:00:35]} 27. dxc5 {[%emt 0:00:06][%mdl 4096] Endgame KQR-KQR} Qd7 {[%emt 0:02:44]} 28. Kg2 {[%emt 0:01:52]} Rc8 {[%emt 0:01:46]} 29. Rc3 {[%emt 0:02:45]} h5 {[%emt 0:02:50]} 30. h3 {[%emt 0:00:16]} a6 {[%emt 0:01:31]} 31. Kf3 {[%emt 0:01:31]} a5 {[%emt 0:01:00]} 32. Kf4 $2 {[%emt 0:02:08][%mdl 8192]} (32. Kg3 $17) 32... a4 $2 {[%emt 0:01:42]} (32... f6 $1 $19 {[%cal Rf6e5] has better winning chances.} 33. Qxf6 Rf8 34. Qxf8+ Kxf8) 33. Kf3 {[%emt 0:04:14] [#]} (33. Kg3 $17) 33... Qb5 $1 $19 {[%emt 0:01:11] Strongly threatening ...Qb2.} 34. Qd4 {[%emt 0:00:51] [#]} Qa5 {[%emt 0:02:42]} (34... Qf1 $1 $19 {Hoping for ...a3.} 35. Kg3 e5) 35. Rc4 {[%emt 0:01:02]} a3 {[%emt 0:01:17]} 36. Ra4 {[%emt 0:01:26]} e5 {[%emt 0:02:06]} ({Better is} 36... Qxc5 $17 37. Qxc5 Rxc5 38. Rxa3 Kg7) 37. Rxa5 $11 {[%emt 0:01:29]} exd4 {[%emt 0:00:03] KR-KR} 38. h4 {[%emt 0:01:25]} a2 {[%emt 0:00:23]} 39. Rxa2 {[%emt 0:00:07]} Rxc5 {[%emt 0:00:01]} 40. Kf4 {[%emt 0:01:15]} Rc1 {[%emt 0:00:38]} ({Black should play} 40... d3 $15) 41. Rd2 $1 {[%emt 0:30:34]} Rc4 {[%emt 0:30:42]} 42. Ke5 {[%emt 0:00:00]} Kg7 {[%emt 0:00:00]} 43. f4 {[%emt 0:00:00]} Rc1 {[%emt 0:00:00]} 44. f5 {[%emt 0:00:00]} gxf5 {[%emt 0:00:00]} 45. Kxf5 {[%emt 0:00:00] The position is equal.} Rc5+ {[%emt 0:00:00]} 46. Kf4 {[%emt 0:00:00]} Rc4 {[%emt 0:00:00]} 47. Kg5 {[%emt 0:00:00]} Ra4 {[%emt 0:00:00]} 48. Rd1 {[%emt 0:00:00]} Ra5+ {[%emt 0:00:00]} 49. Kf4 {[%emt 0:00:00]} Ra4 {[%emt 0:00:00]} 50. Kg5 {[%emt 0:00:00]} Ra5+ {[%emt 0:00:00]} 51. Kf4 {[%emt 0:00:00]} Ra2 {[%emt 0:00:00]} 52. Kg5 {[%emt 0:00:00]} Ra4 {[%emt 0:00:00]} 53. Rd2 {[%emt 0:00:00]} Rb4 {[%emt 0:00:00]} 54. Rd1 {[%emt 0:00:00]} Rc4 {[%emt 0:00:00]} 55. Rd2 {[%emt 0:00:00] White happily takes the draw.  Weighted Error Value: White=0.31/Black=0.33} 1/2-1/2